bitfinex-derivatives/quotes_BTCF0:USTF0_20241117
["timestamp","ask_amount","ask_price","bid_price","bid_amount"]
[1731834939728,0.08936,91250.0,91243.0,0.19553717]
[1731834939929,0.0548,91245.0,91243.0,0.19553717]
[1731834940427,0.05619883,91255.0,91244.0,0.3288]
[1731834940734,0.3608,91274.0,91265.0,0.054782]
[1731834940940,0.05478,91270.0,91268.0,0.3608]
[1731834941440,0.054783,91265.0,91263.0,0.3608]
[1731834943136,0.054788,91256.0,91249.0,0.0051]
[1731834943333,0.08936,91259.0,91246.0,0.176]
[1731834943529,0.08936,91259.0,91245.0,0.448794]
[1731834943839,0.054793,91247.0,91245.0,0.3608]
[1731834945829,0.054793,91247.0,91236.0,9.803e-05]
[1731834945830,0.054797,91240.0,91236.0,9.803e-05]
[1731834946031,0.054805,91228.0,91225.0,0.0051]
[1731834946231,0.08936,91227.0,91220.0,0.32020654]
[1731834946441,0.12016,91227.0,91220.0,0.32020654]
[1731834947537,0.054809,91221.0,91220.0,0.32020654]
[1731834949148,0.054809,91221.0,91213.0,0.00010223]
[1731834949441,0.054813,91215.0,91214.0,0.00548612]
[1731834949633,0.054813,91215.0,91213.0,0.00010223]
[1731834950233,0.054813,91215.0,91214.0,0.00342894]
[1731834950733,0.054813,91215.0,91214.0,0.00342897]
[1731834950935,0.054813,91215.0,91214.0,0.00891531]
[1731834951337,0.0305,91239.0,91214.0,0.00891531]
[1731834951545,0.0894,91236.0,91221.0,0.3608]
[1731834951745,0.054803,91231.0,91222.0,0.06652897]
[1731834952047,0.0894,91245.0,91230.0,0.3608]
[1731834952247,0.0894,91245.0,91224.0,0.3608]
[1731834952635,0.054801,91234.0,91224.0,0.3608]
[1731834952940,0.054801,91234.0,91225.0,0.00891531]
[1731834953146,0.054801,91234.0,91226.0,0.00891531]
[1731834953351,0.054804,91228.0,91227.0,0.00548634]
[1731834954048,0.36092512,91246.0,91227.0,0.00891531]
[1731834954049,0.054801,91235.0,91227.0,0.00891531]
[1731834954238,0.08936,91238.0,91228.0,0.00891531]
[1731834954437,0.08936,91238.0,91229.0,0.00891531]
[1731834954438,0.054803,91230.0,91229.0,0.00891531]
[1731834957851,0.0548,91236.0,91229.0,0.00891398]
[1731834958143,0.054803,91231.0,91230.0,0.00342845]
[1731834958338,0.054803,91231.0,91230.0,0.00891398]
[1731834959048,0.054803,91231.0,91230.0,0.00342845]
[1731834959251,0.00012512,91246.0,91230.0,0.00891359]
[1731834959548,0.00012512,91246.0,91239.0,0.3608]
[1731834959746,0.00012512,91246.0,91239.0,0.40051287]
[1731834960248,0.00012512,91246.0,91244.0,0.054794]
[1731834960438,0.00012512,91246.0,91245.0,0.03901287]
[1731834960839,0.00012512,91246.0,91245.0,0.0301]
[1731834961041,0.00012512,91246.0,91245.0,0.03352754]
[1731834962445,0.00012512,91246.0,91245.0,0.03901142]
[1731834963942,0.00012512,91246.0,91245.0,0.00342754]
[1731834964150,0.1140713,91246.0,91232.0,0.1811]
[1731834964448,0.054801,91233.0,91232.0,0.176]
[1731834964650,0.054804,91230.0,91227.0,0.05389259]
[1731834964949,0.054795,91245.0,91227.0,0.05389259]
[1731834965153,0.16366388,91231.0,91227.0,0.05389259]
[1731834965347,0.16366388,91231.0,91226.0,0.00164412]
[1731834965551,0.054805,91228.0,91227.0,0.00548523]
[1731834965858,0.054805,91228.0,91227.0,0.00891354]
[1731834966148,0.054805,91228.0,91227.0,0.01439884]
[1731834966848,0.054805,91228.0,91227.0,0.00548523]
[1731834967157,0.054805,91228.0,91227.0,0.00891403]
[1731834967853,0.054801,91234.0,91227.0,0.36971403]
[1731834968057,0.054801,91234.0,91228.0,0.00342847]
[1731834968259,0.054801,91234.0,91229.0,0.00342847]
[1731834968554,0.054801,91234.0,91230.0,0.00342847]
[1731834968756,0.054801,91234.0,91231.0,0.00342847]
[1731834969065,0.054802,91233.0,91232.0,0.00342847]
[1731834969749,0.19635554,91235.0,91232.0,0.00342847]
[1731834969943,0.19635554,91235.0,91233.0,0.05822947]
[1731834970555,0.00012512,91246.0,91233.0,0.05822947]
[1731834970556,0.00012512,91246.0,91234.0,0.00891343]
[1731834970858,0.00012512,91246.0,91245.0,0.415594]
[1731834971054,0.00012512,91246.0,91245.0,0.41902247]
[1731834973060,0.1140713,91246.0,91245.0,0.36422847]
[1731834973265,0.00012512,91246.0,91238.0,0.3608]
[1731834973445,0.054798,91239.0,91238.0,0.3608]
[1731834973647,0.05486045,91265.0,91253.0,0.00757488]
[1731834973847,0.03476766,91261.0,91260.0,0.415585]
[1731834974047,0.054763,91298.0,91261.0,0.054784]
[1731834974351,0.22927285,91312.0,91261.0,0.054784]
[1731834974352,0.054759,91304.0,91290.0,0.3608]
[1731834974549,0.0532978,91303.0,91299.0,0.3608]
[1731834974749,0.054754,91312.0,91299.0,0.3608]
[1731834974953,0.15096,91313.0,91299.0,0.3608]
[1731834974954,0.00011916,91311.0,91299.0,0.3608]
[1731834975159,0.054759,91304.0,91299.0,0.3608]
[1731834975458,0.11394618,91306.0,91293.0,0.00011521]
[1731834975848,0.054763,91298.0,91293.0,0.00011521]
[1731834976556,0.05341616,91311.0,91293.0,0.00011521]
[1731834976557,0.05476,91303.0,91293.0,0.00011521]
[1731834977149,0.05476,91303.0,91296.0,0.3608]
[1731834977760,0.14277616,91311.0,91296.0,0.3608]
[1731834977954,0.05476,91302.0,91296.0,0.3608]
[1731834978760,0.3608,91303.0,91293.0,0.00011521]
[1731834978967,0.3608,91295.0,91289.0,0.0051]
[1731834979257,0.054767,91290.0,91283.0,0.0051]
[1731834979464,0.0305,91289.0,91281.0,0.054772]
[1731834981253,0.0305,91289.0,91288.0,0.3608]
[1731834981450,0.3608,91300.0,91292.0,0.054765]
[1731834981754,0.05476,91302.0,91297.0,0.3608]
[1731834982151,0.0331,91301.0,91298.0,0.054762]
[1731834982354,0.0331,91301.0,91299.0,0.054762]
[1731834983558,0.0331,91301.0,91297.0,0.3608]
[1731834984058,0.054763,91297.0,91287.0,0.09032]
[1731834984261,0.054764,91295.0,91287.0,0.09032]
[1731834984567,0.054764,91295.0,91286.0,0.054769]
[1731834984761,0.054764,91295.0,91281.0,0.47474618]
[1731834984955,0.0331,91301.0,91293.0,0.054765]
[1731834985157,0.05328512,91300.0,91293.0,0.13683374]
[1731834985563,0.05328512,91300.0,91294.0,0.054765]
[1731834986162,0.054762,91299.0,91294.0,0.054765]
[1731834987267,0.0331,91301.0,91293.0,0.11394618]
[1731834987472,0.054765,91295.0,91293.0,0.11394618]
[1731834987671,0.054766,91292.0,91291.0,0.3608]
[1731834988967,0.054764,91296.0,91291.0,0.3608]
[1731834989171,0.05328499,91295.0,91289.0,0.16871418]
[1731834989468,0.054764,91295.0,91289.0,0.16871418]
[1731834989674,0.054764,91295.0,91292.0,0.3608]
[1731834990270,0.054764,91295.0,91292.0,0.415566]
[1731834990469,0.054761,91300.0,91292.0,0.3608]
[1731834990676,0.054761,91300.0,91295.0,0.054764]
[1731834990677,0.05328316,91299.0,91295.0,0.054764]
[1731834990973,0.00056001,91308.0,91299.0,0.054762]
[1731834991163,0.0322,91310.0,91309.0,0.054756]
[1731834991375,0.0309,91313.0,91309.0,0.415556]
[1731834991871,0.054754,91312.0,91310.0,0.11394618]
[1731834993876,0.054754,91312.0,91309.0,0.415556]
[1731834994067,0.054754,91312.0,91310.0,0.11394618]
[1731834995673,0.0309,91313.0,91310.0,0.11394618]
[1731834996768,0.085654,91313.0,91310.0,0.11394618]
[1731834997280,0.054754,91312.0,91310.0,0.11394618]
[1731834999078,0.05487416,91311.0,91309.0,0.415556]
[1731835002277,0.05487416,91311.0,91309.0,0.054756]
[1731835002485,0.05487416,91311.0,91310.0,0.3608]
[1731835002687,0.054761,91300.0,91299.0,0.3608]
[1731835002979,0.16882034,91311.0,91287.0,0.3608]
[1731835002980,0.05487416,91311.0,91295.0,0.3608]
[1731835003182,0.054763,91298.0,91295.0,0.3608]
[1731835003879,0.16375991,91304.0,91297.0,0.11394618]
[1731835004073,0.19554519,91311.0,91309.0,0.054756]
[1731835004074,0.00011916,91311.0,91309.0,0.054756]
[1731835004273,0.054745,91328.0,91326.0,0.054746]
[1731835005083,0.0926,91332.0,91330.0,0.054743]
[1731835005273,0.00013674,91331.0,91330.0,0.054743]
[1731835005684,0.00013674,91331.0,91330.0,0.16868918]
[1731835007180,0.00013674,91331.0,91325.0,0.3608]
[1731835007394,0.11408292,91331.0,91321.0,0.054749]
[1731835007573,0.11408292,91331.0,91316.0,0.31656513]
[1731835007574,0.11408292,91331.0,91316.0,0.05366973]
[1731835007774,0.054751,91317.0,91316.0,0.05366973]
[1731835008283,0.054744,91330.0,91312.0,0.3608]
[1731835008488,0.11408292,91331.0,91312.0,0.3608]
[1731835008781,0.05387801,91331.0,91312.0,0.3608]
[1731835008982,0.054749,91321.0,91318.0,0.05475]
[1731835009283,0.05387801,91331.0,91318.0,0.05475]
[1731835009284,0.054746,91325.0,91318.0,0.05475]
[1731835009492,0.00013674,91331.0,91330.0,0.054743]
[1731835009786,0.00013674,91331.0,91330.0,0.415543]
[1731835014671,0.00013674,91331.0,91330.0,0.3608]
[1731835014875,0.054745,91327.0,91326.0,0.0898]
[1731835017886,0.054745,91327.0,91325.0,0.054746]
[1731835018582,0.00013674,91331.0,91317.0,0.0051]
[1731835018781,0.054753,91313.0,91312.0,0.0051]
[1731835018984,0.054753,91313.0,91311.0,0.05639745]
[1731835019180,0.0307,91312.0,91311.0,0.05639745]
[1731835019376,0.054746,91325.0,91311.0,0.17034363]
[1731835019581,0.054746,91325.0,91322.0,0.054748]
[1731835019786,0.0306,91324.0,91322.0,0.054748]
[1731835020191,0.13861191,91324.0,91322.0,0.054748]
[1731835020379,0.054749,91320.0,91318.0,0.41555]
[1731835020580,0.054749,91320.0,91318.0,0.3608]
[1731835021898,0.054749,91320.0,91318.0,0.41555]
[1731835022092,0.054749,91320.0,91318.0,0.6733454]
[1731835023007,0.0306,91324.0,91323.0,0.054747]
[1731835023693,0.0307,91330.0,91319.0,0.37174158]
[1731835023995,0.085443,91330.0,91329.0,0.3608]
[1731835025991,0.0307,91330.0,91329.0,0.3608]
[1731835026389,0.085443,91330.0,91329.0,0.3608]
[1731835028400,0.0307,91330.0,91329.0,0.3608]
[1731835031798,0.0307,91330.0,91329.0,0.36422425]
[1731835032308,0.0307,91330.0,91329.0,0.3676485]
[1731835033600,0.0307,91330.0,91329.0,0.36422425]
[1731835034602,0.00013674,91331.0,91329.0,0.36422425]
[1731835034603,0.00013674,91331.0,91330.0,0.054743]
[1731835034806,0.00013674,91331.0,91330.0,0.38664715]
[1731835035211,0.00013674,91331.0,91330.0,1.88664715]
[1731835035513,0.00013674,91331.0,91330.0,0.38664679]
[1731835037608,0.00013674,91331.0,91330.0,0.38673535]
[1731835037805,0.00013674,91331.0,91330.0,0.49622779]
[1731835038202,0.16406335,91335.0,91334.0,0.054741]
[1731835038396,0.16406335,91335.0,91334.0,0.41896479]
[1731835038710,0.16406335,91335.0,91334.0,0.74744479]
[1731835039410,0.16406335,91335.0,91334.0,0.744021]
[1731835039709,0.16406335,91335.0,91334.0,0.74744462]
[1731835041807,0.16406335,91335.0,91334.0,0.7529225]
[1731835042304,0.0324,91343.0,91340.0,0.054737]
[1731835042498,0.0324,91343.0,91342.0,0.415536]
[1731835042699,0.0856511,91343.0,91342.0,0.41895972]
[1731835043105,0.19625726,91343.0,91342.0,0.41895972]
[1731835043306,0.19625726,91343.0,91342.0,0.42443763]
[1731835044117,0.0324,91343.0,91342.0,0.42443763]
[1731835045405,0.0324,91343.0,91342.0,0.415536]
[1731835045615,0.0324,91343.0,91342.0,0.469639]
[1731835046408,0.0324,91343.0,91342.0,0.47306266]
[1731835046712,0.14634618,91343.0,91342.0,0.00342366]
[1731835046919,0.0324,91343.0,91342.0,0.00342366]
[1731835047208,0.054739,91338.0,91336.0,0.05474]
[1731835048015,0.054742,91333.0,91332.0,0.054742]
[1731835048312,0.054742,91333.0,91332.0,0.05816624]
[1731835048812,0.054742,91333.0,91332.0,0.054742]
[1731835050116,0.08625927,91343.0,91332.0,0.054742]
[1731835050117,0.08625927,91343.0,91332.0,0.3319041]
[1731835050320,0.08625927,91343.0,91342.0,0.11394618]
[1731835050809,0.08625927,91343.0,91342.0,0.11736998]
[1731835051115,0.0324,91343.0,91342.0,0.11394618]
[1731835051810,0.0324,91344.0,91342.0,0.11736986]
[1731835052019,0.0324,91344.0,91343.0,0.05815868]
[1731835052609,0.0324,91348.0,91347.0,0.054733]
[1731835052808,0.00164248,91374.0,91347.0,0.054733]
[1731835052809,0.0316,91362.0,91361.0,0.054725]
[1731835053004,0.0316,91362.0,91361.0,0.52947118]
[1731835053206,0.0316,91362.0,91361.0,0.53289409]
[1731835054411,0.0316,91362.0,91361.0,0.52947118]
[1731835055915,0.054716,91377.0,91361.0,0.47816903]
[1731835056120,0.054716,91377.0,91373.0,0.47474618]
[1731835056315,0.054716,91377.0,91374.0,0.054716]
[1731835056510,0.0313,91387.0,91373.0,0.47474618]
[1731835056705,0.054716,91375.0,91373.0,0.3608]
[1731835059119,0.0324,91374.0,91373.0,0.47474618]
[1731835059516,0.08563333,91374.0,91373.0,0.47474618]
[1731835059714,0.0324,91374.0,91373.0,0.47474618]
[1731835062208,0.0324,91374.0,91373.0,0.3608]
[1731835062622,0.00013413,91376.0,91373.0,0.3608]
[1731835062623,0.00013413,91376.0,91374.0,0.054717]
[1731835062907,0.00013413,91376.0,91363.0,0.0051]
[1731835063113,0.054722,91365.0,91364.0,0.00342272]
[1731835063315,0.054722,91365.0,91361.0,0.38270398]
[1731835063520,0.087723,91364.0,91361.0,0.38270398]
[1731835063713,0.0624,91363.0,91362.0,0.00342298]
[1731835064119,0.0624,91363.0,91361.0,0.3608]
[1731835064426,0.0624,91363.0,91361.0,0.415524]
[1731835065509,0.0624,91363.0,91362.0,0.00342299]
[1731835066022,0.0624,91363.0,91361.0,0.415524]
[1731835066220,0.19625984,91368.0,91362.0,0.00342294]
[1731835066422,0.19625984,91368.0,91367.0,0.16866718]
[1731835066626,0.00013413,91376.0,91367.0,0.11736912]
[1731835066827,0.00013413,91376.0,91375.0,0.3608]
[1731835068321,0.05485013,91376.0,91375.0,0.3608]
[1731835068724,0.054717,91374.0,91373.0,0.08924]
[1731835069223,0.00013413,91376.0,91374.0,0.054717]
[1731835070922,0.00013413,91376.0,91373.0,0.08924]
[1731835070923,0.05471,91386.0,91375.0,0.32832]
[1731835071128,0.05471,91386.0,91385.0,0.3608]
[1731835071713,0.0547981,91386.0,91385.0,0.3608]
[1731835074624,0.054713,91380.0,91379.0,0.0892]
[1731835074817,0.054713,91380.0,91379.0,0.09204492]
[1731835075016,8.81e-05,91386.0,91379.0,0.09204492]
[1731835075234,0.13075843,91382.0,91380.0,0.054713]
[1731835075529,0.13075843,91382.0,91381.0,0.36422236]
[1731835075730,0.13075843,91382.0,91381.0,0.3642223]
[1731835075927,0.13075421,91384.0,91381.0,0.3642223]
[1731835076133,0.13075421,91384.0,91382.0,0.0034223]
[1731835076322,0.18546521,91384.0,91383.0,0.0034223]
[1731835076526,8.81e-05,91386.0,91380.0,0.0892]
[1731835076719,0.054713,91381.0,91380.0,0.0892]
[1731835077634,0.054713,91381.0,91379.0,0.00342246]
[1731835077931,0.1855238,91381.0,91379.0,0.00342246]
[1731835078230,0.16364076,91386.0,91380.0,0.3608]
[1731835078231,0.16355266,91384.0,91380.0,0.3608]
[1731835078537,0.054712,91382.0,91381.0,0.00342237]
[1731835078830,0.054713,91380.0,91379.0,0.00342246]
[1731835079015,0.054713,91380.0,91379.0,0.00684507]
[1731835079219,0.10794706,91380.0,91379.0,0.00684507]
[1731835079432,0.2509754,91380.0,91379.0,0.00684507]
[1731835079638,0.10794706,91380.0,91379.0,0.00684507]
[1731835079933,0.05472,91369.0,91362.0,0.3608]
[1731835080228,0.054723,91364.0,91362.0,0.3608]
[1731835080429,0.054723,91364.0,91363.0,0.01232283]
[1731835080640,0.21852558,91364.0,91363.0,0.01232295]
[1731835081126,0.10796427,91364.0,91363.0,0.01232295]
[1731835081326,0.10796427,91364.0,91363.0,0.01916918]
[1731835081622,0.054723,91364.0,91363.0,0.01916918]
[1731835082132,0.062,91368.0,91363.0,0.01232304]
[1731835082328,0.062,91368.0,91366.0,0.054722]
[1731835082534,0.36144,91383.0,91363.0,0.11394618]
[1731835082535,0.054718,91373.0,91370.0,0.054719]
[1731835082730,0.054718,91373.0,91371.0,0.00547681]
[1731835082940,0.054718,91373.0,91372.0,0.00547681]
[1731835083327,0.18582286,91378.0,91374.0,0.054717]
[1731835083532,0.054715,91378.0,91375.0,0.06019281]
[1731835083833,0.054715,91378.0,91376.0,0.054716]
[1731835084636,0.054716,91376.0,91372.0,0.3608]
[1731835084836,0.054716,91376.0,91373.0,0.06703827]
[1731835085038,0.054716,91376.0,91374.0,0.00547618]
[1731835085240,0.054716,91376.0,91375.0,0.00547618]
[1731835086033,0.054716,91376.0,91373.0,0.054717]
[1731835086328,0.13110786,91382.0,91372.0,0.3608]
[1731835086329,0.18581986,91382.0,91372.0,0.3608]
[1731835086524,0.18581986,91382.0,91377.0,0.054715]
[1731835086730,0.13110786,91382.0,91381.0,0.3608]
[1731835087936,0.13110786,91382.0,91381.0,0.3663754]
[1731835088330,0.16388483,91387.0,91381.0,0.83568674]
[1731835088533,0.16388483,91387.0,91385.0,0.05471]
[1731835088735,0.16388483,91387.0,91385.0,0.14938571]
[1731835088932,0.054705,91394.0,91385.0,0.14938571]
[1731835089142,0.054705,91394.0,91385.0,0.14391]
[1731835089641,0.24966764,91393.0,91385.0,0.14391]
[1731835089842,0.19644094,91392.0,91381.0,0.36089969]
[1731835090143,0.16388004,91383.0,91382.0,0.0054756]
[1731835090330,0.0547981,91386.0,91381.0,0.41561169]
[1731835090531,0.16387491,91382.0,91381.0,0.41561169]
[1731835090738,0.16387491,91382.0,91381.0,0.42108733]
[1731835090943,0.05322841,91385.0,91381.0,0.36637533]
[1731835091237,0.05322901,91384.0,91382.0,0.054712]
[1731835091442,0.05322901,91383.0,91382.0,0.054712]
[1731835091636,0.10645867,91383.0,91382.0,0.054712]
[1731835092140,0.054711,91384.0,91382.0,0.05813432]
[1731835092340,0.054711,91384.0,91383.0,0.00342229]
[1731835092541,0.054711,91384.0,91382.0,0.00342232]
[1731835092542,0.201524,91384.0,91382.0,0.00342232]
[1731835092840,0.14689596,91383.0,91382.0,0.00342232]
[1731835093240,0.05322979,91383.0,91382.0,0.00342232]
[1731835094144,0.05322979,91383.0,91382.0,0.01232077]
[1731835094441,0.14669771,91383.0,91382.0,0.0068448]
[1731835094834,0.14709863,91383.0,91382.0,0.0068448]
[1731835095034,0.054719,91371.0,91370.0,0.0051]
[1731835095238,0.054723,91364.0,91363.0,0.3608]
[1731835095441,0.054723,91364.0,91363.0,0.37312229]
[1731835095442,0.10796049,91364.0,91363.0,0.37312229]
[1731835095647,0.05323749,91364.0,91363.0,0.48706847]
[1731835095842,0.19670733,91368.0,91363.0,0.48706847]
[1731835096047,0.24994482,91369.0,91365.0,0.054722]
[1731835096238,0.19670733,91368.0,91366.0,0.00547657]
[1731835096439,0.19670733,91368.0,91367.0,0.00547657]
[1731835096747,0.054718,91373.0,91367.0,0.00547657]
[1731835097042,0.3608,91376.0,91368.0,0.00547657]
[1731835097343,0.3608,91376.0,91369.0,0.00547657]
[1731835097344,0.054719,91371.0,91369.0,0.00547657]
[1731835097546,0.054719,91371.0,91370.0,0.00547657]
[1731835097846,0.054716,91375.0,91370.0,0.00547657]
[1731835098047,0.054716,91375.0,91365.0,0.19367276]
[1731835098048,0.054716,91375.0,91372.0,0.054718]
[1731835098341,0.054716,91375.0,91373.0,0.00547667]
[1731835098642,0.054716,91375.0,91368.0,0.19367276]
[1731835098943,0.054716,91375.0,91373.0,0.054717]
[1731835099851,0.05547841,91382.0,91372.0,0.3608]
[1731835100040,0.054715,91377.0,91376.0,0.054715]
[1731835100637,0.054712,91383.0,91372.0,0.47474618]
[1731835100841,0.054712,91383.0,91373.0,0.19914919]
[1731835101048,0.05545679,91390.0,91381.0,0.3608]
[1731835101243,0.0892,91394.0,91384.0,0.054711]
[1731835101544,0.0547981,91386.0,91384.0,0.054711]
[1731835102335,8.81e-05,91386.0,91384.0,0.054711]
[1731835104745,0.09315883,91386.0,91384.0,0.054711]
[1731835105048,0.14630167,91385.0,91384.0,0.054711]
[1731835105445,0.14630148,91385.0,91384.0,0.054711]
[1731835105638,0.09307043,91385.0,91384.0,0.054711]
[1731835106038,0.14617437,91385.0,91384.0,0.054711]
[1731835106250,0.09294343,91385.0,91384.0,0.054711]
[1731835107538,0.09294343,91385.0,91384.0,0.05813342]
[1731835107741,0.09294343,91385.0,91384.0,0.054711]
[1731835107742,0.14617437,91385.0,91384.0,0.054711]
[1731835107943,0.054711,91384.0,91381.0,0.3608]
[1731835108144,0.05323094,91383.0,91382.0,0.00342247]
[1731835108549,0.054711,91384.0,91382.0,0.00342252]
[1731835108751,0.05323094,91383.0,91378.0,0.054714]
[1731835108952,0.05323094,91383.0,91379.0,0.00889856]
[1731835108953,0.19670248,91380.0,91379.0,0.00889856]
[1731835109454,0.05323094,91380.0,91379.0,0.00889856]
[1731835109948,0.054713,91381.0,91379.0,0.00342252]
[1731835110158,0.054716,91375.0,91374.0,0.0068452]
[1731835110452,0.10794694,91375.0,91374.0,0.01574438]
[1731835110848,0.20129727,91375.0,91374.0,0.01026796]
[1731835111047,0.20129727,91375.0,91374.0,0.00342276]
[1731835111946,0.054716,91375.0,91374.0,0.00342276]
[1731835112155,0.383036,91375.0,91374.0,0.00342276]
[1731835112468,0.054716,91375.0,91374.0,0.00342276]
[1731835112641,0.118616,91375.0,91374.0,0.00342276]
[1731835113563,0.118616,91375.0,91374.0,0.00342301]
[1731835114250,0.054716,91375.0,91374.0,0.00342301]
[1731835114451,0.21866508,91380.0,91375.0,0.054716]
[1731835114653,0.21866508,91380.0,91376.0,0.05813901]
[1731835114654,0.054714,91380.0,91376.0,0.05813901]
[1731835115054,0.054714,91380.0,91377.0,0.00342301]
[1731835115253,0.054714,91380.0,91378.0,0.00342301]
[1731835115441,0.16395108,91382.0,91370.0,0.054719]
[1731835115646,0.054713,91380.0,91371.0,0.05814192]
[1731835115850,0.16866418,91373.0,91372.0,0.00342292]
[1731835116049,0.11394618,91373.0,91372.0,0.00342292]
[1731835116252,0.11394618,91373.0,91372.0,0.00342287]
[1731835116253,0.054718,91373.0,91372.0,0.00342287]
[1731835116948,0.086615,91377.0,91373.0,0.054718]
[1731835117155,0.086615,91377.0,91374.0,0.00342287]
[1731835117460,0.086615,91377.0,91375.0,0.00342287]
[1731835117649,0.086615,91377.0,91376.0,0.00342287]
[1731835119458,0.086615,91377.0,91376.0,0.00889933]
[1731835119851,0.086615,91377.0,91376.0,0.00889934]
[1731835123958,0.21874043,91383.0,91381.0,0.054713]
[1731835124150,0.054712,91383.0,91381.0,0.054713]
[1731835124868,0.36144,91385.0,91372.0,0.26377276]
[1731835125064,0.054717,91374.0,91373.0,0.05813966]
[1731835125453,0.054717,91374.0,91373.0,0.054717]
[1731835125655,0.054717,91374.0,91373.0,0.05813976]
[1731835125954,0.054717,91374.0,91370.0,0.19367276]
[1731835126161,0.054717,91374.0,91371.0,0.00342283]
[1731835126464,0.16402989,91385.0,91373.0,0.3608]
[1731835126651,0.0331,91392.0,91383.0,0.3608]
[1731835126853,0.054711,91385.0,91376.0,0.0051]
[1731835127054,0.054711,91385.0,91373.0,0.415518]
[1731835127055,0.19683756,91377.0,91373.0,0.415518]
[1731835127359,0.19683756,91377.0,91374.0,0.00890875]
[1731835127560,0.19683756,91377.0,91375.0,0.00548311]
[1731835127759,0.00012837,91380.0,91375.0,0.00890875]
[1731835127760,0.05323578,91376.0,91375.0,0.00890875]
[1731835128069,0.25007379,91377.0,91375.0,0.00890875]
[1731835128260,0.19683756,91377.0,91376.0,0.00548311]
[1731835128463,0.05323626,91379.0,91376.0,0.00890875]
[1731835128770,0.05323626,91378.0,91377.0,0.00890875]
[1731835129074,0.19682878,91378.0,91377.0,0.06362375]
[1731835129459,0.05323626,91378.0,91377.0,0.07053912]
[1731835130359,0.05323626,91379.0,91377.0,0.07053912]
[1731835130665,0.00012837,91380.0,91377.0,0.07053912]
[1731835130666,0.05323626,91378.0,91377.0,0.054715]
[1731835130872,0.00012837,91380.0,91377.0,0.054715]
[1731835130873,0.05323626,91379.0,91378.0,0.00345747]
[1731835131170,0.00012837,91380.0,91379.0,0.054714]
[1731835131378,0.00012837,91380.0,91379.0,0.07062535]
[1731835131565,0.05336003,91380.0,91379.0,0.07062535]
[1731835132271,0.19694711,91380.0,91379.0,0.07351292]
[1731835133064,0.25017877,91380.0,91379.0,0.43431292]
[1731835133668,0.05336003,91380.0,91379.0,0.43142535]
[1731835134170,0.05336003,91380.0,91379.0,0.415514]
[1731835134370,0.05336003,91380.0,91379.0,0.43144728]
[1731835134576,0.05335939,91380.0,91379.0,0.4383758]
[1731835134880,0.00012837,91380.0,91379.0,0.63204856]
[1731835135067,0.00012837,91380.0,91379.0,0.43144632]
[1731835135372,0.00012837,91380.0,91379.0,0.62519687]
[1731835137268,0.00012837,91380.0,91379.0,0.62518135]
[1731835137674,0.00012837,91380.0,91379.0,0.43144632]
[1731835137970,0.00012837,91380.0,91379.0,0.62517108]
[1731835138165,0.00012837,91380.0,91379.0,0.43144632]
[1731835139872,0.00012837,91380.0,91379.0,0.62513888]
[1731835140871,0.00012837,91380.0,91379.0,0.67859055]
[1731835141264,0.00012837,91380.0,91379.0,0.48489799]
[1731835141466,0.00012837,91380.0,91379.0,0.67859117]
[1731835142270,0.00012837,91380.0,91379.0,0.48489799]
[1731835143378,0.00012837,91380.0,91379.0,0.49432962]
[1731835143682,0.00012837,91380.0,91379.0,0.50318815]
[1731835143870,0.00012837,91380.0,91379.0,0.49428997]
[1731835144070,0.00012837,91380.0,91379.0,0.50661065]
[1731835144778,0.00012837,91380.0,91379.0,0.51003306]
[1731835145079,0.00012837,91380.0,91379.0,0.70373971]
[1731835145269,0.00012837,91380.0,91379.0,0.51003306]
[1731835145471,0.00012837,91380.0,91379.0,0.51291803]
[1731835145671,0.00012837,91380.0,91379.0,0.51003306]
[1731835146883,0.00012837,91380.0,91379.0,0.85508997]
[1731835147077,0.00012837,91380.0,91379.0,1.12877778]
[1731835147275,0.00012837,91380.0,91379.0,0.87083155]
[1731835147980,0.00012837,91380.0,91379.0,0.86398738]
[1731835148180,0.00012837,91380.0,91379.0,1.0575019]
[1731835148877,0.00012837,91380.0,91379.0,0.86398738]
[1731835149073,0.05484137,91380.0,91379.0,0.01231978]
[1731835149270,0.25166011,91380.0,91379.0,0.01231978]
[1731835149578,0.10806977,91380.0,91379.0,0.01231978]
[1731835149775,0.05335677,91380.0,91379.0,0.01231978]
[1731835149976,0.19690562,91380.0,91379.0,0.01231978]
[1731835150174,0.05335677,91380.0,91379.0,0.01231978]
[1731835150571,0.25013402,91380.0,91379.0,0.01231978]
[1731835150777,0.05335677,91380.0,91379.0,0.01231978]
[1731835150972,0.05335677,91380.0,91379.0,0.01916431]
[1731835151382,0.00012837,91380.0,91379.0,0.01574194]
[1731835151572,0.05335575,91380.0,91379.0,0.01574194]
[1731835151780,0.00012837,91380.0,91379.0,0.01574194]
[1731835153675,0.0533559,91380.0,91379.0,0.01574194]
[1731835154177,0.0533559,91380.0,91379.0,1.50684453]
[1731835154478,0.05335585,91380.0,91379.0,1.51574214]
[1731835155071,0.05335585,91380.0,91379.0,0.01574214]
[1731835155281,0.05335585,91380.0,91379.0,0.01862318]
[1731835155580,0.2501331,91380.0,91379.0,0.01574214]
[1731835155781,0.10806885,91380.0,91379.0,0.01574214]
[1731835155982,0.14036885,91380.0,91379.0,0.01574214]
[1731835156773,0.08714137,91380.0,91379.0,0.01574214]
[1731835156972,0.03242837,91380.0,91379.0,0.01574214]
[1731835158684,0.03242837,91380.0,91379.0,0.27375102]
[1731835159591,0.03242837,91380.0,91379.0,0.01574214]
[1731835159986,0.03242837,91380.0,91379.0,0.27388932]
[1731835160284,0.03242837,91380.0,91379.0,0.37654214]
[1731835160490,0.03242837,91380.0,91379.0,0.63468932]
[1731835160683,0.00012837,91380.0,91379.0,0.37654214]
[1731835164683,0.05335549,91380.0,91379.0,0.37654214]
[1731835164882,0.00012837,91380.0,91379.0,0.37654214]
[1731835166086,0.05335546,91380.0,91379.0,0.37654214]
[1731835166484,0.05335544,91380.0,91379.0,0.37654214]
[1731835168087,0.05335594,91380.0,91379.0,0.37654214]
[1731835168288,0.00012837,91380.0,91379.0,0.37654214]
[1731835171091,0.00012837,91380.0,91379.0,0.37654189]
[1731835171283,0.16415063,91381.0,91380.0,0.054713]
[1731835171477,0.16415063,91381.0,91380.0,0.06497945]
[1731835171685,0.16415063,91381.0,91380.0,0.07045489]
[1731835171886,0.24961038,91392.0,91380.0,0.01574189]
[1731835172095,0.24961038,91392.0,91391.0,0.05759002]